Cogmind - Beta 15 @@@ ROGUE MODE // 2025.06.21 @ 16:11:34 Player: Mogwok Wargfriend Result: Destroyed by G-34 Mercenary with Small Laser Performance ------------- Evolutions (0) 0 Regions Visited (1) 200 Robots Destroyed (21) 105 Value Destroyed (362) 362 Prototype IDs (0) 0 Alien Tech Used (0) 0 Bonus (0) 0 TOTAL SCORE: 667 Bonus ------- None Cogmind --------- Core Integrity 0/250 Matter 270/300 Energy 265/265 System Corruption 0% Temperature Hot (216) Movement Treading (160) Location -10/Materials Parts ------- > --- POWER (1) -------- Improved Ion Engine > --- PROPULSION (2) --- Light Treads Light Treads > --- UTILITY (2) ------ Small Storage Unit Hardened Light Armor Plating > --- WEAPON (2) ------- Small Laser Assault Rifle > --- INVENTORY (8) ---- Improved Ion Engine Aluminum Leg Wheel Hardened Light Armor Plating Hardened Light Armor Plating Small Laser Mining Laser Peak State ------------ > --- POWER ------------ Improved Ion Engine > --- PROPULSION ------- Wheel Wheel > --- UTILITY ---------- Small Storage Unit Hardened Light Armor Plating > --- WEAPON ----------- Light Assault Rifle Light Assault Rifle > --- INVENTORY -------- Improved Ion Engine Light Treads Light Treads Hardened Light Armor Plating Hardened Light Armor Plating Small Laser Assault Rifle Mining Laser [Rating: 10] Favorites ----------- Power Ion Engine Engine Ion Engine Propulsion Wheel Treads Light Treads Wheel Wheel Utility Small Storage Unit Device Heat Sink Storage Small Storage Unit Protection Hardened Light Armor Plating Weapon Light Assault Rifle Energy Gun Small Laser Ballistic Gun Light Assault Rifle Build | -11 -10 ------- Run | Yrd Mat Slots Evolved . | . . Power . | . . Propulsion . | . . Utility . | . . Weapon . | . . Parts Attached 19 | 9 10 Power 2 | 1 1 Engine 2 | 1 1 Core . | . . Reactor . | . . Propulsion 8 | 5 3 Treads 2 | 1 1 Leg . | . . Wheel 6 | 4 2 Hover . | . . Flight . | . . Utility 4 | 1 3 Device 2 | . 2 Storage 1 | 1 . Processor . | . . Hackware . | . . Protection 1 | . 1 Artifact . | . . Weapon 5 | 2 3 Energy Gun 1 | . 1 Energy Cannon . | . . Ballistic Gun 4 | 2 2 Ballistic Cannon . | . . Launcher . | . . Special Weapon . | . . Impact Weapon . | . . Slashing Weapon . | . . Piercing Weapon . | . . Special Melee Weapon . | . . Unidentified Prototypes . | . . Parts Lost 5 | . 5 Power . | . . Propulsion 3 | . 3 Utility . | . . Weapon 2 | . 2 Highest Loss Streak 3 | . 3 To Critical Strikes . | . . Average Backups 7 | 5 7 Power . | . 1 Propulsion 3 | 3 3 Utility . | . . Weapon 2 | 1 2 Tool/Special . | . . Unused Backups 14 | 1 13 Power 3 | . 3 Propulsion 6 | 1 5 Utility 2 | . 2 Weapon 3 | . 3 Tool/Special . | . . Average Slot Usage (%) 94 | . 94 Engine 14 | . 14 Treads 4 | . 4 Wheel 22 | . 22 Device 7 | . 7 Storage 14 | . 14 Protection 4 | . 4 Energy Gun 1 | . 1 Ballistic Gun 25 | . 25 Peak Build Rating 10 | 6 10 Average Rating 7 | 5 7 On Entrance 3 | . 6 Naked Turns . | . . Heaviest Build 20 | 12 20 Greatest Support 40 | 32 40 Greatest Overweight (x) 3 | 3 1 Average Overweight (x) . | . . Largest Inventory Capacity 8 | 8 8 Average Capacity 7 | 7 8 Most Carried 8 | 8 8 Average Carried 7 | 5 7 Final Capacity 8 | 8 8 Final Carried 8 | 8 7 Class Distribution -------------------- 100% | Mutant Dominant Class ---------------- Mutant | -10/Materials Resources | -11 -10 ----------- Run | Yrd Mat Matter Collected 556 | 338 218 Remotely . | . . Salvage Created 723 | 219 504 Parts 38 | 12 26 Haulers Intercepted 1 | . 1 Recyclers Shooed . | . . Parts Field Recycled . | . . Retrieved Matter . | . . Parts Self-Destructed . | . . Prevented . | . . Kills | -11 -10 ------- Run | Yrd Mat Combat Hostiles Destroyed 8 | . 8 Guns 8 | . 8 Classes Destroyed 6 | 3 3 Worker 5 | 2 3 Tunneler 5 | 5 . Hauler 1 | . 1 Recycler 1 | 1 . Watcher 1 | . 1 Grunt 8 | . 8 Best Kill Streak 5 | 5 5 Combat Bots Only 2 | . 2 Max Kills in Single Turn 1 | 1 1 Gunslinging . | . . Exploded . | . . Melee . | . . Uniques/NPCs Destroyed . | . . Combat | -11 -10 -------- Run | Yrd Mat Hostile Shots Fired 103 | . 103 Missed 26 | . 26 Hits 77 | . 77 Projectile 77 | . 77 Critical Strikes 1 | . 1 Damage Taken 1017 | . 1017 Core 252 | . 252 Absorbed by Shields . | . . Core Remaining (%) 100 | 100 . Volleys Fired 89 | 24 65 Largest 2 | 2 2 Hottest 60 | 40 60 Shots Fired 168 | 48 120 Gun 168 | 48 120 Cannon . | . . Launcher . | . . Special . | . . Kinetic 159 | 48 111 Thermal 9 | . 9 Explosive . | . . Electromagnetic . | . . Robot Hit Streak 13 | 9 13 Robot Miss Streak 4 | 3 4 Penetration Max . | . . Secondary Targets 2 | . 2 Max Gunslinging Chain 1 | . 1 Shots Hit Robots 119 | 35 84 Core Hits 43 | 15 28 Critical Kills 1 | . 1 Critical Parts Destroyed . | . . Critical Strikes 1 | . 1 Destroy 1 | . 1 Melee Attacks . | . . Impact . | . . Slashing . | . . Piercing . | . . Sneak Attacks . | . . Combat Hostiles . | . . Follow-up Attacks . | . . Damage Inflicted 999 | 270 729 Guns 999 | 270 729 Cannons . | . . Explosions . | . . Melee . | . . Ramming . | . . Kinetic 936 | 270 666 Thermal 63 | . 63 Explosive . | . . Electromagnetic . | . . Impact . | . . Slashing . | . . Piercing . | . . Highest Corruption . | . . Average Corruption . | . . Corruption Purged . | . . Corruption Blocked . | . . Overload Shots . | . . Overflow Damage . | . . Projectiles . | . . Explosions . | . . Melee . | . . Knockbacks . | . . Impact . | . . Kinetic . | . . Secondary . | . . Self-Inflicted Damage . | . . Shots . | . . Rammed . | . . Targets Rammed . | . . Kicked . | . . Crushed . | . . Highest Temperature 269 | . 269 Average Temperature 113 | . 113 Received Heat Transfer 570 | . 570 Siege Activations . | . . Martial Activations . | . . Shielding Activations . | . . Robots Disrupted . | . . Combat Hostiles . | . . Robots Corrupted . | . . Combat Hostiles . | . . Parts Fried . | . . Impact Corruptions . | . . Robots Melted . | . . Combat Hostiles . | . . Parts Melted . | . . Heat Transferred 150 | . 150 Parts Sabotaged . | . . Parts Stolen . | . . Parts Stripped . | . . Power Chain Reactions . | . . Alert | -11 -10 ------- Run | Yrd Mat Maximum Alert Level . | . . Low Security (%) 100 | 100 100 Level 1 . | . . Level 2 . | . . Level 3 . | . . Level 4 . | . . Level 5 . | . . High Security . | . . Max Security . | . . Peak Influence 90 | 10 90 Initial . | . . Average 19 | 1 25 Influence Increases 324 | 40 284 Destroy 0b10 Robot/C 160 | . 160 Destroy 0b10 Robot/NC 65 | 40 25 Destroy Leader 54 | . 54 Lose Combat Pursuer 45 | . 45 Influence Decreases 234 | 40 194 Time Decay 206 | 40 166 Lost Part 28 | . 28 Squads Dispatched 4 | . 4 Investigation 1 | . 1 Extermination . | . . Reinforcement 3 | . 3 Assault . | . . Garrison . | . . Intercept . | . . Searches Triggered . | . . Construction Impeded . | . . Haulers Reinforced . | . . Active Scanning Responses . | . . Cargo Convoy Interrupts . | . . Stealth | -11 -10 --------- Run | Yrd Mat Distress Signals 1 | . 1 Communications Jammed . | . . Distress Signals . | . . Times Spotted 19 | . 19 Peak Tracking Total 6 | . 6 Tactical Retreats 2 | . 2 Traps | -11 -10 ------- Run | Yrd Mat Traps Triggered 1 | . 1 Indirectly . | . . Trap Hack Attempts . | . . Triggered . | . . Disarmed . | . . Reprogrammed . | . . Reused . | . . Traps Extracted . | . . Installed . | . . Triggered . | . . Machines | -11 -10 ---------- Run | Yrd Mat Machines Disabled . | . . Max in Single Turn . | . . Machines Repaired . | . . Machines Dismantled . | . . Machines Sabotaged . | . . Overloaded Fab Kills . | . . Hacking | -11 -10 --------- Run | Yrd Mat Machines Accessed 1 | . 1 Terminals 1 | . 1 Fabricators . | . . Repair Stations . | . . Recycling Units . | . . Scanalyzers . | . . Garrison Access . | . . Total Hacks 4 | . 4 Successful 1 | . 1 Failed 3 | . 3 Catastrophic . | . . Database Lockouts . | . . Manual 4 | . 4 Terminals 4 | . 4 Fabricators . | . . Repair Stations . | . . Recycling Units . | . . Scanalyzers . | . . Garrison Access . | . . Terminal Hacks . | . . Fabricator Hacks . | . . Repair Station Hacks . | . . Recycling Unit Hacks . | . . Scanalyzer . | . . Garrison Access Hacks . | . . Unauthorized Hacks 1 | . 1 Terminals 1 | . 1 Operators 1 | . 1 Fabricators . | . . Repair Stations . | . . Recycling Units . | . . Scanalyzers . | . . Garrison Access . | . . Data Cores Recovered . | . . Used . | . . Hacking Detections 1 | . 1 Full Trace Events 1 | . 1 Feedback Events . | . . Feedback Blocked . | . . Robot Schematics Acquired . | . . Robots Built . | . . Authchips . | . . Time . | . . Total Robot Build Rating . | . . Part Schematics Acquired . | . . Parts Built . | . . Authchips . | . . Time . | . . Total Part Build Rating . | . . Parts Repaired . | . . Time . | . . Parts Recycled . | . . Recycled Matter . | . . Retrieved Matter . | . . Retrieved Components . | . . Parts Scanalyzed . | . . Part Schematics Acquired . | . . Parts Damaged . | . . Bothacking | -11 -10 ------------ Run | Yrd Mat Used RIF Installer . | . . Robots Hacked . | . . Non-combat . | . . Combat . | . . Robot Hacks Applied . | . . Relay Couplers Released . | . . Fabnet Peak Effective % . | . . Robots Rewired . | . . Allies Hacked . | . . Hacks Repelled . | . . Allies | -11 -10 -------- Run | Yrd Mat Total Allies . | . . Largest Group . | . . Highest-Rated Group . | . . Highest-Rated Ally . | . . Total Orders . | . . Ally Attacks . | . . Total Damage . | . . Kills . | . . Allies Corrupted . | . . Allies Melted . | . . Intel | -11 -10 ------- Run | Yrd Mat Active Infowar (turns) . | . . Robot Analysis Total . | . . Derelict Logs Recovered . | . . Drone Launches . | . . Drone Recoveries . | . . Exploration | -11 -10 ------------- Run | Yrd Mat Turns Passed 738 | 187 551 Spaces Moved 454 | 116 338 Core 22 | 22 . Treads 24 | . 24 Legs . | . . Wheels 408 | 94 314 Hover . | . . Flight . | . . Fastest Speed 50 | 50 80 Average Speed 86 | 87 86 Slowest Speed 200 | 200 160 Overloaded Moves . | . . Propulsion Burnouts . | . . Robots Hopped . | . . Potential Cave-ins . | . . Cave-ins Triggered . | . . Exploration Rate (%) 27 | 6 49 Regions Visited 1 Branch Regions . Pre-discovered Areas . | . . Known Exits Taken . | . . Unknown Exits Taken 1 | 1 . Scrap Searched . | . . Spaces Dug . | . . Terrain Destroyed . | . . Melee . | . . Projectile . | . . AOE . | . . Terrain Rammed . | . . Walls Destroyed . | . . Machines Disabled . | . . Actions | -11 -10 --------- Run | Yrd Mat Total 669 | 161 508 Wait 67 | . 67 Move 453 | 115 338 Hop . | . . Pick Up 20 | 8 12 Fast Attach 12 | 9 3 Attach 6 | . 6 Detach 3 | 2 1 Swap 3 | . 3 Drop 16 | 3 13 Fire 89 | 24 65 Melee . | . . Ram . | . . Kick . | . . Crush . | . . Escape Stasis . | . . Rewire . | . . Trap . | . . Miscellaneous . | . . Route ------- -11/Scrapyard -10/Materials (discovered 2 exits: [*Mat] / [*Min]) History --------- Turn | Location | Event 37 | -11/Scrapyard | Discovered new exit (range 15) 188 | -11/Scrapyard | Entered Materials 306 | -10/Materials | Build established: Mutant 349 | -10/Materials | Discovered new exit (range 7) 473 | -10/Materials | Core integrity fell below 50% 532 | -10/Materials | Discovered new exit (range 7) 677 | -10/Materials | Lost 3 parts (2n1w) 731 | -10/Materials | Core integrity fell below 20% 739 | -10/Materials | Destroyed by G-34 Mercenary with Small Laser Last Messages --------------- 00689_ R-06 Scavenger collects Ion Engine. 00691_ K-01 Serf collects debris. 00695_ G-34 Mercenary destroyed. 00695_ K-01 Serf collects debris. 00704_ W-16 Scout destroyed. 00705_ K-01 Serf collects debris. 00706_ ALERT: Hostiles spotted, dispatching reinforcements to Terminal M001. 00706_ K-01 Serf collects debris. 00711_ K-01 Serf cleans the Electrolysis Chamber. 00711_ K-01 Serf collects debris. 00718_ K-01 Serf cleans the Electrolysis Chamber. 00734_ G-34 Mercenary destroyed. 00734_ Switching to secondary target: G-47 Trooper. 00734_ Critical hit (Burn: +37). 00736_ K-01 Serf cleans the Electrolysis Chamber. Map ----- +----------------------------------------------------+ | ????????????????########???????# #???# """ | | ???????????????????????????????# #???# """ | | ???????????????????????????????# #???# | | ???????????????????????????????# #???###### | | ???????????????????????????????# #?????? | | ???????????????????????????????# #????? | | ???????????????????????????????# #???# """ | | ??????????????????##+########### #???# """ | | ??????????????????# #???# """ | | ???????????????/ #???# """ | | ??????????????????#o T """ """ #???# """ | | ??????????????????# """ """ #???# | | ??????????????????# """ """ #########+ | | ??????????????????# """ | | ????????? ????????# | | ?????????? ???????# | | ????????###/####### ########## | | ????????# # """ ## | | ????????# # """ !############# | | ????????# #%"""! #??########## | | ????????# # %!=! #??#""!"!""## | | ????????# #* !% = #??# "!"!" ## | | ????????# ####+####### ## | | ????????# a u = m | | ????????+ % = < | | ???????o# || @ """ *""" % ! | | ????????# || u """k """ ## =| ## | | ????????## | """ """ ###########!= | | ?????????# + ????????#! | | ?????????# g # ???????# | | ?????????# g%g # ??????### | | ?????????# =####################? ????????? | | ????????# ???????????????????????????????? | | ????????# ????????????????????????????????? | | ????????+ ?????????????????????????????????? | | ????????# ??????????????????????????????????? | | ????????????????????????????????????????????? | | ????????????????????????????????????????????? | | ?????????????????????????????o??????????????? | | ????????????????????????????????????????????? | | ????????????????????????????????????????????? | | ????????????????????????????????????????????? | | ????????????????????????????????????????????? | | ????????????????????????????????????????????? | | ????????????????????????????????????????????? | | ????????????????????????????????????????????? | | ????????????????????????????????????????????? | | ????????????????????????????????????????????? | | ????????????????????????????????????????????? | | ????????????????????????????????????????????? | +----------------------------------------------------+ Best States ------------- Heat Dissipation 35 Energy Generation 12 Energy Capacity 265 Matter Stores 300 Matter Capacity 300 Sight Range 16 Terrain Scan Density 10 Armor Coverage 150 Evasion (%) 50 Recoil Reduction 2 Item Schematics ----------------- None Robot Schematics ------------------ None Fabricated ------------ Nothing Repaired ---------- Nothing Alien Tech Used ----------------- None Achievements -------------- None Challenges ------------ None Game ------ Seed AlertPiercingShovel Manual? 0 Play Time 00:07:39 Cumulative 226.0 hours Start 2025.06.21 @ 16:02:57 End 2025.06.21 @ 16:11:34 Sessions 1 Manual Loads 0 Difficulty Rogue Special Mode None Game No. 217 Rogue 217 Adventurer 0 Explorer 0 Win Type - Total 1 Types 1/0/0/0/0/0/0/0/0/0 Lore% 55 Gallery% 59 Achievement% 47 Wizard Run 0 Options --------- Layout 2 ASCII 1 Keyboard 1 Movement Numpad Keybinds 0 Fullscreen 2 Font 32/TamsynBold Map View 50x44 Zoom Use 0% Tactical HUD 1 Map Filters NONE Filters NONE Steam 1 RUN: 1832bbd0-763a-456f-be03-3981a2a5b27e